[Event "*** MasterClass Titled Tuesday Blitz"]
[Site "Chess.com"]
[Date "2017.10.03"]
[Round "4"]
[White "Oleksandr_Bortnyk"]
[Black "SerGo055"]
[Result "1-0"]
[WhiteElo "2831"]
[BlackElo "2435"]
[TimeControl "180+2"]
[EndTime "13:52:17 PDT"]
[Termination "Oleksandr_Bortnyk won on time"]

1. e4 {[%clk 0:03:01.9]} 1... d5 {[%clk 0:03:00]} 2. exd5 {[%clk 0:03:01.5]}
2... Nf6 {[%clk 0:03:00.5]} 3. Nf3 {[%clk 0:03:01]} 3... Qxd5 {[%clk 0:03:00.8]}
4. Nc3 {[%clk 0:03:01.5]} 4... Qd8 {[%clk 0:03:01]} 5. Bc4 {[%clk 0:02:56.3]}
5... Bf5 {[%clk 0:03:01.3]} 6. O-O {[%clk 0:02:56.5]} 6... e6 {[%clk 0:03:01.9]}
7. Re1 {[%clk 0:02:56.5]} 7... Be7 {[%clk 0:03:02]} 8. d3 {[%clk 0:02:57.4]}
8... O-O {[%clk 0:03:01.8]} 9. h3 {[%clk 0:02:58.4]} 9... c6 {[%clk 0:02:54.9]}
10. a3 {[%clk 0:02:54.5]} 10... Nbd7 {[%clk 0:02:54.3]} 11. Qe2 {[%clk
0:02:55.3]} 11... b5 {[%clk 0:02:49.8]} 12. Bb3 {[%clk 0:02:56]} 12... Nb6
{[%clk 0:02:48.9]} 13. Ne4 {[%clk 0:02:56.8]} 13... c5 {[%clk 0:02:39.2]} 14.
Ng3 {[%clk 0:02:45.9]} 14... Bg6 {[%clk 0:02:38.6]} 15. Ne5 {[%clk 0:02:41.2]}
15... Rc8 {[%clk 0:02:36.1]} 16. Nxg6 {[%clk 0:02:33.4]} 16... hxg6 {[%clk
0:02:36.1]} 17. c3 {[%clk 0:02:28.7]} 17... c4 {[%clk 0:02:27.6]} 18. dxc4
{[%clk 0:02:29.3]} 18... bxc4 {[%clk 0:02:27.9]} 19. Bc2 {[%clk 0:02:30.3]}
19... Nfd5 {[%clk 0:02:26.8]} 20. Qg4 {[%clk 0:02:25.4]} 20... Nf6 {[%clk
0:02:14.5]} 21. Qf3 {[%clk 0:02:25.8]} 21... Qd5 {[%clk 0:02:13.4]} 22. Ne4
{[%clk 0:02:26.6]} 22... Rfd8 {[%clk 0:02:10.6]} 23. Be3 {[%clk 0:02:26]} 23...
Qb5 {[%clk 0:02:08.6]} 24. Rab1 {[%clk 0:02:04.7]} 24... a5 {[%clk 0:01:53.2]}
25. Bd4 {[%clk 0:01:51.7]} 25... Nbd5 {[%clk 0:01:50.4]} 26. a4 {[%clk
0:01:51.7]} 26... Qc6 {[%clk 0:01:47.3]} 27. Ng5 {[%clk 0:01:53.3]} 27... Bc5
{[%clk 0:01:34.3]} 28. Rbd1 {[%clk 0:01:13.6]} 28... Ne7 {[%clk 0:01:27.5]} 29.
Be4 {[%clk 0:01:10.2]} 29... Ned5 {[%clk 0:01:07.2]} 30. Bxf6 {[%clk 0:00:54.7]}
30... gxf6 {[%clk 0:01:06]} 31. Nxe6 {[%clk 0:00:35.2]} 31... fxe6 {[%clk
0:00:59.6]} 32. Qg4 {[%clk 0:00:36.2]} 32... Qd7 {[%clk 0:00:44.2]} 33. Bxg6
{[%clk 0:00:34.7]} 33... Kf8 {[%clk 0:00:34]} 34. Rxe6 {[%clk 0:00:26.8]} 34...
Qg7 {[%clk 0:00:27.2]} 35. Qf5 {[%clk 0:00:20]} 35... Be7 {[%clk 0:00:19.3]} 36.
Rde1 {[%clk 0:00:12.3]} 36... Rc5 {[%clk 0:00:16.4]} 37. Qe4 {[%clk 0:00:10.6]}
37... Rc7 {[%clk 0:00:13.5]} 38. h4 {[%clk 0:00:10.8]} 38... Qh6 {[%clk
0:00:09.9]} 39. h5 {[%clk 0:00:08.4]} 39... Rdd7 {[%clk 0:00:08.1]} 40. Ra6
{[%clk 0:00:06.4]} 40... Nf4 {[%clk 0:00:08.4]} 41. Ra8+ {[%clk 0:00:07]} 41...
Kg7 {[%clk 0:00:09.2]} 42. Bf5 {[%clk 0:00:08.5]} 42... Rd8 {[%clk 0:00:07]} 43.
Rxa5 {[%clk 0:00:03.7]} 43... Qg5 {[%clk 0:00:06.2]} 44. Qf3 {[%clk 0:00:04]}
44... Rc5 {[%clk 0:00:03.1]} 45. Rxe7+ {[%clk 0:00:04.5]} 45... Kf8 {[%clk
0:00:04.2]} 46. Rxc5 {[%clk 0:00:05.5]} 46... Kxe7 {[%clk 0:00:05.4]} 47. g3
{[%clk 0:00:05.4]} 47... Ne6 {[%clk 0:00:04.7]} 48. Rd5 {[%clk 0:00:04.4]} 48...
Rxd5 {[%clk 0:00:04.7]} 49. Qxd5 {[%clk 0:00:06.3]} 49... Ng7 {[%clk 0:00:05.4]}
50. Qd7+ {[%clk 0:00:06.1]} 50... Kf8 {[%clk 0:00:02.6]} 51. Qd8+ {[%clk
0:00:07.5]} 51... Kf7 {[%clk 0:00:02.1]} 52. Bg6+ {[%clk 0:00:08.8]} 1-0

[Event "*** MasterClass Titled Tuesday Blitz"]
[Site "Chess.com"]
[Date "2017.10.03"]
[Round "4"]
[White "BogdanDeac"]
[Black "Gordima"]
[Result "0-1"]
[WhiteElo "2632"]
[BlackElo "2576"]
[TimeControl "180+2"]
[EndTime "13:52:20 PDT"]
[Termination "Gordima won by resignation"]

1. d4 {[%clk 0:03:01.9]} 1... Nf6 {[%clk 0:03:00.8]} 2. c4 {[%clk 0:03:02]} 2...
g6 {[%clk 0:03:02.2]} 3. g3 {[%clk 0:03:01.1]} 3... Bg7 {[%clk 0:03:03.3]} 4.
Bg2 {[%clk 0:03:01.4]} 4... O-O {[%clk 0:03:04.3]} 5. Nc3 {[%clk 0:03:02.5]}
5... d6 {[%clk 0:03:05.8]} 6. Nf3 {[%clk 0:03:01.9]} 6... c6 {[%clk 0:03:07.3]}
7. O-O {[%clk 0:03:02.4]} 7... Bf5 {[%clk 0:03:08.9]} 8. Ne1 {[%clk 0:03:02]}
8... Be6 {[%clk 0:03:10.1]} 9. d5 {[%clk 0:03:00.9]} 9... cxd5 {[%clk
0:03:10.8]} 10. cxd5 {[%clk 0:03:01.6]} 10... Bd7 {[%clk 0:03:12.2]} 11. Be3
{[%clk 0:03:02.4]} 11... Na6 {[%clk 0:03:11.3]} 12. Bd4 {[%clk 0:03:02.7]} 12...
Qa5 {[%clk 0:03:11.6]} 13. Nd3 {[%clk 0:02:56.7]} 13... Rfc8 {[%clk 0:03:12.5]}
14. a3 {[%clk 0:02:55.3]} 14... Qd8 {[%clk 0:03:10.4]} 15. Rc1 {[%clk 0:02:49]}
15... Nc7 {[%clk 0:02:58.3]} 16. Qb3 {[%clk 0:02:46.4]} 16... Rcb8 {[%clk
0:02:46.9]} 17. Rfd1 {[%clk 0:02:37.3]} 17... Bf5 {[%clk 0:02:44.2]} 18. e4
{[%clk 0:02:34.4]} 18... Bg4 {[%clk 0:02:44.8]} 19. Re1 {[%clk 0:02:24.2]} 19...
Qf8 {[%clk 0:02:19.8]} 20. h3 {[%clk 0:01:54.1]} 20... Bc8 {[%clk 0:02:18.4]}
21. Ne2 {[%clk 0:01:19.2]} 21... Nfe8 {[%clk 0:02:18.2]} 22. e5 {[%clk
0:01:12.7]} 22... Bf5 {[%clk 0:02:14]} 23. exd6 {[%clk 0:01:11.9]} 23... exd6
{[%clk 0:02:15]} 24. Ndf4 {[%clk 0:01:03.8]} 24... Na6 {[%clk 0:02:01.6]} 25.
Qe3 {[%clk 0:01:02.9]} 25... Bxd4 {[%clk 0:01:58.9]} 26. Nxd4 {[%clk 0:01:02.7]}
26... Bd7 {[%clk 0:01:54.1]} 27. Nf3 {[%clk 0:00:42.7]} 27... Nc5 {[%clk
0:01:48.4]} 28. b4 {[%clk 0:00:38.4]} 28... Na4 {[%clk 0:01:48.5]} 29. h4 {[%clk
0:00:21.2]} 29... Nb6 {[%clk 0:01:47.6]} 30. h5 {[%clk 0:00:20.4]} 30... Rc8
{[%clk 0:01:48.7]} 31. hxg6 {[%clk 0:00:18.4]} 31... hxg6 {[%clk 0:01:49.6]} 32.
Ng5 {[%clk 0:00:19.2]} 32... Ng7 {[%clk 0:01:45.6]} 33. Ne4 {[%clk 0:00:09.6]}
33... Ne8 {[%clk 0:01:38.5]} 34. Bf1 {[%clk 0:00:05.5]} 34... Qg7 {[%clk
0:01:35.7]} 35. Bd3 {[%clk 0:00:05.9]} 35... Qb2 {[%clk 0:01:36]} 36. Rxc8
{[%clk 0:00:06.4]} 36... Rxc8 {[%clk 0:01:36.7]} 37. Ng5 {[%clk 0:00:08]} 37...
Qf6 {[%clk 0:01:33.6]} 38. Ne4 {[%clk 0:00:08.5]} 38... Qg7 {[%clk 0:01:28.2]}
39. Ng5 {[%clk 0:00:08.8]} 39... Nf6 {[%clk 0:01:25.8]} 40. Qd2 {[%clk
0:00:03.9]} 40... Qh6 {[%clk 0:01:00.3]} 41. Ne4 {[%clk 0:00:04.1]} 41... Nxe4
{[%clk 0:01:00.6]} 42. Bxe4 {[%clk 0:00:04.6]} 42... Nc4 {[%clk 0:00:58.2]} 43.
Qd4 {[%clk 0:00:05.2]} 43... Ne5 {[%clk 0:00:52.7]} 44. Qxa7 {[%clk 0:00:04.9]}
44... g5 {[%clk 0:00:52.5]} 45. Nd3 {[%clk 0:00:05.2]} 45... Ng4 {[%clk
0:00:50.6]} 46. Qxb7 {[%clk 0:00:02.8]} 46... Rc2 {[%clk 0:00:51.4]} 47. Kf1
{[%clk 0:00:04]} 47... Nh2+ {[%clk 0:00:48.4]} 48. Kg1 {[%clk 0:00:04.2]} 48...
Ng4 {[%clk 0:00:48.5]} 49. Kf1 {[%clk 0:00:04.5]} 49... Bf5 {[%clk 0:00:38.8]}
50. Qb8+ {[%clk 0:00:02.5]} 50... Kg7 {[%clk 0:00:39.6]} 51. Qe8 {[%clk
0:00:04.4]} 51... Qh3+ {[%clk 0:00:36.7]} 52. Kg1 {[%clk 0:00:03.5]} 52... Qh2+
{[%clk 0:00:37.5]} 53. Kf1 {[%clk 0:00:04.7]} 53... Rxf2+ {[%clk 0:00:39.1]} 0-1

[Event "*** MasterClass Titled Tuesday Blitz"]
[Site "Chess.com"]
[Date "2017.10.03"]
[Round "4"]
[White "mazetofonias"]
[Black "Cayse"]
[Result "0-1"]
[WhiteElo "2486"]
[BlackElo "2650"]
[TimeControl "180+2"]
[EndTime "13:52:29 PDT"]
[Termination "Cayse won by resignation"]

1. d4 {[%clk 0:03:00.3]} 1... Nf6 {[%clk 0:02:59.7]} 2. Nf3 {[%clk 0:03:02.2]}
2... e6 {[%clk 0:03:00.6]} 3. Bg5 {[%clk 0:03:03.2]} 3... b6 {[%clk 0:03:00.7]}
4. Nbd2 {[%clk 0:03:03.9]} 4... Bb7 {[%clk 0:03:01.4]} 5. e4 {[%clk 0:03:04.6]}
5... h6 {[%clk 0:03:02]} 6. Bxf6 {[%clk 0:03:05.7]} 6... Qxf6 {[%clk 0:03:02.6]}
7. c3 {[%clk 0:03:07.1]} 7... g6 {[%clk 0:03:02.5]} 8. Bd3 {[%clk 0:03:08]} 8...
Bg7 {[%clk 0:03:03.1]} 9. Qe2 {[%clk 0:03:09.6]} 9... O-O {[%clk 0:03:03.1]} 10.
h4 {[%clk 0:03:10.6]} 10... d6 {[%clk 0:03:03.7]} 11. e5 {[%clk 0:03:11.3]}
11... Qe7 {[%clk 0:03:04.2]} 12. h5 {[%clk 0:03:09.1]} 12... g5 {[%clk
0:03:04.9]} 13. O-O-O {[%clk 0:03:09.3]} 13... Nd7 {[%clk 0:03:04.6]} 14. Kb1
{[%clk 0:03:09]} 14... Rfd8 {[%clk 0:03:03.8]} 15. Nc4 {[%clk 0:03:05.5]} 15...
dxe5 {[%clk 0:02:53]} 16. Nfxe5 {[%clk 0:03:04.9]} 16... c5 {[%clk 0:02:42.9]}
17. Nxd7 {[%clk 0:02:51.1]} 17... Rxd7 {[%clk 0:02:42.7]} 18. dxc5 {[%clk
0:02:51.2]} 18... bxc5 {[%clk 0:02:36.5]} 19. Be4 {[%clk 0:02:52]} 19... Rb8
{[%clk 0:02:18.9]} 20. Rxd7 {[%clk 0:02:50.2]} 20... Qxd7 {[%clk 0:02:19.5]} 21.
Bxb7 {[%clk 0:02:44.5]} 21... Qxb7 {[%clk 0:02:19.7]} 22. Qf3 {[%clk 0:01:47.7]}
22... Qxf3 {[%clk 0:02:18.9]} 23. gxf3 {[%clk 0:01:49.6]} 23... Bxc3 {[%clk
0:02:20.4]} 24. Kc2 {[%clk 0:01:50.2]} 24... Bd4 {[%clk 0:02:21.1]} 25. Rf1
{[%clk 0:01:45.5]} 25... Kg7 {[%clk 0:02:19.1]} 26. b3 {[%clk 0:01:46.9]} 26...
Kf6 {[%clk 0:02:19.4]} 27. Kd3 {[%clk 0:01:48.2]} 27... Rd8 {[%clk 0:02:14.8]}
28. Ke2 {[%clk 0:01:49.1]} 28... e5 {[%clk 0:01:57]} 29. Rd1 {[%clk 0:01:48.4]}
29... Ke6 {[%clk 0:01:57.1]} 30. Rd3 {[%clk 0:01:45.2]} 30... Rb8 {[%clk
0:01:55.8]} 31. Rd1 {[%clk 0:01:45.5]} 31... f5 {[%clk 0:01:56.2]} 32. Rg1
{[%clk 0:01:38.4]} 32... Kd5 {[%clk 0:01:56.6]} 33. Rd1 {[%clk 0:01:37.7]} 33...
Kc6 {[%clk 0:01:56.2]} 34. Rg1 {[%clk 0:01:35.3]} 34... Re8 {[%clk 0:01:56.4]}
35. Rd1 {[%clk 0:01:33.6]} 35... e4 {[%clk 0:01:52.3]} 36. Na5+ {[%clk
0:01:34.2]} 36... Kd5 {[%clk 0:01:50]} 37. Nc4 {[%clk 0:01:36.1]} 37... exf3+
{[%clk 0:01:38.5]} 38. Kxf3 {[%clk 0:01:38]} 38... g4+ {[%clk 0:01:38.5]} 39.
Kf4 {[%clk 0:01:37.7]} 39... Re2 {[%clk 0:01:38.2]} 40. Kxf5 {[%clk 0:01:26.2]}
40... Rxf2+ {[%clk 0:01:38.4]} 41. Kxg4 {[%clk 0:01:27.5]} 41... Rxa2 {[%clk
0:01:39]} 42. Kf3 {[%clk 0:01:18]} 42... Rh2 {[%clk 0:01:37.2]} 43. Kg4 {[%clk
0:01:04.3]} 43... Rg2+ {[%clk 0:01:33.3]} 44. Kf3 {[%clk 0:01:03.2]} 44... Rg5
{[%clk 0:01:31.6]} 45. Rh1 {[%clk 0:01:02.4]} 45... Kc6 {[%clk 0:01:31.1]} 46.
Rh2 {[%clk 0:00:56.1]} 46... Kb5 {[%clk 0:01:31.4]} 47. Ra2 {[%clk 0:00:55.4]}
47... Rxh5 {[%clk 0:01:29.7]} 48. Rxa7 {[%clk 0:00:55.1]} 48... Kb4 {[%clk
0:01:03.3]} 49. Rb7+ {[%clk 0:00:55.3]} 49... Kc3 {[%clk 0:01:04.3]} 50. Nd6
{[%clk 0:00:55.8]} 50... Kd3 {[%clk 0:01:02]} 51. Kg4 {[%clk 0:00:52.9]} 51...
Rd5 {[%clk 0:01:00.3]} 52. Nf5 {[%clk 0:00:53]} 52... h5+ {[%clk 0:01:00.9]} 53.
Kf4 {[%clk 0:00:53.9]} 53... Bc3 {[%clk 0:00:58.6]} 54. Kg5 {[%clk 0:00:29.7]}
54... Bd2+ {[%clk 0:00:50.5]} 55. Kg6 {[%clk 0:00:30.2]} 55... Kc3 {[%clk
0:00:50.6]} 56. Rh7 {[%clk 0:00:26.4]} 56... Kxb3 {[%clk 0:00:46.8]} 57. Rxh5
{[%clk 0:00:27.6]} 57... c4 {[%clk 0:00:46.9]} 58. Rh7 {[%clk 0:00:20.9]} 58...
c3 {[%clk 0:00:47.3]} 59. Rb7+ {[%clk 0:00:22.2]} 59... Ka2 {[%clk 0:00:48.1]}
60. Rc7 {[%clk 0:00:22.7]} 60... Kb2 {[%clk 0:00:46.7]} 61. Kf6 {[%clk
0:00:19.5]} 61... c2 {[%clk 0:00:44.2]} 62. Ke6 {[%clk 0:00:20.8]} 62... Rd3
{[%clk 0:00:41.6]} 63. Rb7+ {[%clk 0:00:18.4]} 63... Ka2 {[%clk 0:00:40.5]} 64.
Ra7+ {[%clk 0:00:19.2]} 64... Ra3 {[%clk 0:00:37.7]} 0-1

[Event "*** MasterClass Titled Tuesday Blitz"]
[Site "Chess.com"]
[Date "2017.10.03"]
[Round "4"]
[White "OparinGrigoriy"]
[Black "Margency"]
[Result "1-0"]
[WhiteElo "2659"]
[BlackElo "2525"]
[TimeControl "180+2"]
[EndTime "13:52:40 PDT"]
[Termination "OparinGrigoriy won by resignation"]

1. e4 {[%clk 0:03:01.9]} 1... d5 {[%clk 0:03:01.1]} 2. exd5 {[%clk 0:03:02.6]}
2... Qxd5 {[%clk 0:03:03]} 3. Nc3 {[%clk 0:03:04.5]} 3... Qd6 {[%clk 0:03:04.6]}
4. Nf3 {[%clk 0:03:05.4]} 4... Nf6 {[%clk 0:03:06.2]} 5. d4 {[%clk 0:03:06.5]}
5... c6 {[%clk 0:03:07.6]} 6. Ne5 {[%clk 0:03:05.5]} 6... Nbd7 {[%clk
0:03:08.2]} 7. f4 {[%clk 0:03:05.7]} 7... Nb6 {[%clk 0:03:09.4]} 8. Be2 {[%clk
0:03:02.7]} 8... g6 {[%clk 0:03:07.1]} 9. O-O {[%clk 0:03:03.1]} 9... Bg7 {[%clk
0:03:07.8]} 10. a4 {[%clk 0:02:59.4]} 10... a5 {[%clk 0:03:08]} 11. b3 {[%clk
0:02:56.1]} 11... O-O {[%clk 0:02:59.8]} 12. Ba3 {[%clk 0:02:56.8]} 12... Qc7
{[%clk 0:02:57.3]} 13. Bf3 {[%clk 0:02:58.2]} 13... Be6 {[%clk 0:02:53.6]} 14.
Qe1 {[%clk 0:02:55.5]} 14... Rfd8 {[%clk 0:02:50.5]} 15. Rd1 {[%clk 0:02:56.3]}
15... Nbd5 {[%clk 0:02:49.5]} 16. Ne4 {[%clk 0:02:53.5]} 16... Nxf4 {[%clk
0:02:42.9]} 17. Ng5 {[%clk 0:02:54.9]} 17... c5 {[%clk 0:02:05.6]} 18. Bxc5
{[%clk 0:02:41.4]} 18... h6 {[%clk 0:02:05.9]} 19. Nxe6 {[%clk 0:00:49.2]} 19...
Nxe6 {[%clk 0:02:06.3]} 20. Nxg6 {[%clk 0:00:42.5]} 20... Nxc5 {[%clk
0:02:06.2]} 21. Nxe7+ {[%clk 0:00:42.9]} 21... Kf8 {[%clk 0:02:07]} 22. Nf5
{[%clk 0:00:42.6]} 22... Ne6 {[%clk 0:01:53.8]} 23. Qh4 {[%clk 0:00:39]} 23...
Qf4 {[%clk 0:01:42.6]} 24. Qxf4 {[%clk 0:00:33.9]} 24... Nxf4 {[%clk 0:01:43.6]}
25. Bxb7 {[%clk 0:00:35.4]} 25... Ne2+ {[%clk 0:01:39.6]} 26. Kf2 {[%clk
0:00:36.2]} 26... Rab8 {[%clk 0:01:40.6]} 27. Kxe2 {[%clk 0:00:33.9]} 27... Rxb7
{[%clk 0:01:41.1]} 28. Kd3 {[%clk 0:00:29.5]} 28... Nd5 {[%clk 0:01:33.8]} 29.
Nxg7 {[%clk 0:00:23.6]} 29... Nb4+ {[%clk 0:01:32.1]} 30. Ke2 {[%clk 0:00:15.4]}
30... Kxg7 {[%clk 0:01:26.9]} 31. Rd2 {[%clk 0:00:16.9]} 31... Nd5 {[%clk
0:01:21.1]} 32. Kd3 {[%clk 0:00:17.6]} 32... Nb4+ {[%clk 0:01:21.7]} 33. Ke2
{[%clk 0:00:18.9]} 33... Re7+ {[%clk 0:01:18.7]} 34. Kd1 {[%clk 0:00:19.7]}
34... Re4 {[%clk 0:01:18.5]} 35. c3 {[%clk 0:00:18.5]} 35... Nd5 {[%clk
0:01:19.1]} 36. Rf3 {[%clk 0:00:18.1]} 36... Rc8 {[%clk 0:01:15.4]} 37. Kc2
{[%clk 0:00:15.5]} 37... Re1 {[%clk 0:01:06]} 38. Kb2 {[%clk 0:00:15.5]} 38...
Rg1 {[%clk 0:01:05.3]} 39. Re2 {[%clk 0:00:13.4]} 39... Rc7 {[%clk 0:00:55.3]}
40. Rg3+ {[%clk 0:00:14.3]} 40... Kf8 {[%clk 0:00:55.7]} 41. Rf3 {[%clk
0:00:16]} 41... Rd1 {[%clk 0:00:53.2]} 42. Re5 {[%clk 0:00:13.7]} 42... Rd7
{[%clk 0:00:37.1]} 43. Rff5 {[%clk 0:00:15]} 43... Ne7 {[%clk 0:00:33.9]} 44.
Rf2 {[%clk 0:00:16]} 44... Nc6 {[%clk 0:00:32]} 45. Rc5 {[%clk 0:00:16.6]} 45...
Rd6 {[%clk 0:00:33.1]} 46. Kc2 {[%clk 0:00:16.1]} 46... Rg1 {[%clk 0:00:32.1]}
47. Kd3 {[%clk 0:00:16.8]} 47... Kg7 {[%clk 0:00:31.8]} 48. Kc4 {[%clk 0:00:18]}
48... Rb1 {[%clk 0:00:32.2]} 49. Rf3 {[%clk 0:00:18.3]} 49... Rc1 {[%clk
0:00:30.7]} 50. Rg3+ {[%clk 0:00:18.8]} 50... Kf8 {[%clk 0:00:31.4]} 51. Rd5
{[%clk 0:00:18]} 51... Rf6 {[%clk 0:00:29.6]} 52. Kb5 {[%clk 0:00:16.1]} 52...
Ke7 {[%clk 0:00:24.4]} 53. Re3+ {[%clk 0:00:15.8]} 53... Kf8 {[%clk 0:00:25.3]}
54. Rc5 {[%clk 0:00:16.3]} 54... Ne7 {[%clk 0:00:21.2]} 55. Kxa5 {[%clk
0:00:17.2]} 55... Rb1 {[%clk 0:00:21.4]} 56. b4 {[%clk 0:00:12.6]} 56... Nf5
{[%clk 0:00:21.7]} 57. Rf3 {[%clk 0:00:12.6]} 57... Nxd4 {[%clk 0:00:14.4]} 58.
Rxf6 {[%clk 0:00:13.8]} 58... Nb3+ {[%clk 0:00:15.9]} 59. Kb5 {[%clk 0:00:15.3]}
59... Ke7 {[%clk 0:00:16.1]} 60. Rf2 {[%clk 0:00:15.4]} 60... Nxc5 {[%clk
0:00:16.8]} 61. Kxc5 {[%clk 0:00:17.3]} 61... Ra1 {[%clk 0:00:17.1]} 62. a5
{[%clk 0:00:18.1]} 62... Ke6 {[%clk 0:00:18.2]} 63. c4 {[%clk 0:00:19.5]} 63...
f5 {[%clk 0:00:19.4]} 64. Kb6 {[%clk 0:00:20.6]} 64... Kd6 {[%clk 0:00:20.3]}
65. b5 {[%clk 0:00:21.9]} 65... Ke5 {[%clk 0:00:20.8]} 66. c5 {[%clk 0:00:23.3]}
1-0

[Event "*** MasterClass Titled Tuesday Blitz"]
[Site "Chess.com"]
[Date "2017.10.03"]
[Round "4"]
[White "dzhumagaliev"]
[Black "yosephtaher"]
[Result "0-1"]
[WhiteElo "2592"]
[BlackElo "2576"]
[TimeControl "180+2"]
[EndTime "13:52:44 PDT"]
[Termination "yosephtaher won by checkmate"]

1. d4 {[%clk 0:03:01.9]} 1... Nf6 {[%clk 0:03:00.8]} 2. c4 {[%clk 0:03:03.8]}
2... g6 {[%clk 0:03:01.1]} 3. Nc3 {[%clk 0:03:03.9]} 3... Bg7 {[%clk 0:03:02.3]}
4. e4 {[%clk 0:03:04.7]} 4... d6 {[%clk 0:03:03.2]} 5. Nf3 {[%clk 0:03:06.6]}
5... O-O {[%clk 0:03:03.7]} 6. Be2 {[%clk 0:03:08.5]} 6... e5 {[%clk 0:03:03.9]}
7. O-O {[%clk 0:03:10.4]} 7... Na6 {[%clk 0:03:04.6]} 8. Bg5 {[%clk 0:03:10.3]}
8... h6 {[%clk 0:03:00.4]} 9. Bh4 {[%clk 0:03:11.4]} 9... g5 {[%clk 0:03:01.4]}
10. Bg3 {[%clk 0:03:12.4]} 10... Nh5 {[%clk 0:02:59]} 11. dxe5 {[%clk
0:02:31.8]} 11... Nxg3 {[%clk 0:02:56.1]} 12. hxg3 {[%clk 0:02:33.7]} 12... dxe5
{[%clk 0:02:56.3]} 13. Qxd8 {[%clk 0:02:33.7]} 13... Rxd8 {[%clk 0:02:56.5]} 14.
Rfd1 {[%clk 0:02:35.2]} 14... Be6 {[%clk 0:02:56.6]} 15. a3 {[%clk 0:02:25]}
15... Nc5 {[%clk 0:02:55.5]} 16. b4 {[%clk 0:02:16.6]} 16... Nb3 {[%clk
0:02:51.6]} 17. Rab1 {[%clk 0:02:17]} 17... Nd4 {[%clk 0:02:48.1]} 18. Nxd4
{[%clk 0:02:10]} 18... exd4 {[%clk 0:02:47.8]} 19. Na2 {[%clk 0:02:11.1]} 19...
b5 {[%clk 0:02:30.2]} 20. Rbc1 {[%clk 0:02:00.8]} 20... d3 {[%clk 0:01:09]} 21.
Bxd3 {[%clk 0:01:58.9]} 21... bxc4 {[%clk 0:01:07.7]} 22. Be2 {[%clk 0:01:59.6]}
22... Bb2 {[%clk 0:01:06.5]} 23. Rc2 {[%clk 0:01:51.8]} 23... Rxd1+ {[%clk
0:01:03.6]} 24. Bxd1 {[%clk 0:01:52.7]} 24... Bxa3 {[%clk 0:01:04.8]} 25. Be2
{[%clk 0:01:52]} 25... c5 {[%clk 0:00:56.5]} 26. b5 {[%clk 0:01:37.5]} 26... Rb8
{[%clk 0:00:47.7]} 27. Bxc4 {[%clk 0:01:24.6]} 27... Bxc4 {[%clk 0:00:48.1]} 28.
Rxc4 {[%clk 0:01:26.5]} 28... Rxb5 {[%clk 0:00:49.4]} 29. Nc3 {[%clk 0:01:08.2]}
29... Ra5 {[%clk 0:00:48.5]} 30. Nd5 {[%clk 0:01:02.6]} 30... Bb2 {[%clk
0:00:47.3]} 31. f4 {[%clk 0:00:57]} 31... Bd4+ {[%clk 0:00:47.7]} 32. Kh2 {[%clk
0:00:57.6]} 32... Ra1 {[%clk 0:00:43.2]} 33. Kh3 {[%clk 0:00:46.3]} 33... h5
{[%clk 0:00:39.8]} 34. Kh2 {[%clk 0:00:33.3]} 34... g4 {[%clk 0:00:36.5]} 35. e5
{[%clk 0:00:34.1]} 35... Kg7 {[%clk 0:00:33.5]} 36. Ne7 {[%clk 0:00:27.5]} 36...
Kh7 {[%clk 0:00:27.3]} 37. Nf5 {[%clk 0:00:27.3]} 37... Bg1+ {[%clk 0:00:27.1]}
38. Kh1 {[%clk 0:00:28.6]} 38... a5 {[%clk 0:00:28.1]} 39. Nd6 {[%clk
0:00:26.8]} 39... Kg6 {[%clk 0:00:25.4]} 40. f5+ {[%clk 0:00:27.6]} 40... Kg5
{[%clk 0:00:25.5]} 41. Nxf7+ {[%clk 0:00:21.3]} 41... Kxf5 {[%clk 0:00:24.9]}
42. Rf4+ {[%clk 0:00:22.9]} 42... Ke6 {[%clk 0:00:25]} 43. Rf6+ {[%clk
0:00:23.9]} 43... Ke7 {[%clk 0:00:26.3]} 44. Nh6 {[%clk 0:00:17.5]} 44... Bd4+
{[%clk 0:00:26.3]} 45. Kh2 {[%clk 0:00:18.3]} 45... Bxe5 {[%clk 0:00:27.5]} 46.
Rf5 {[%clk 0:00:19.3]} 46... Bd4 {[%clk 0:00:25.9]} 47. Ng8+ {[%clk 0:00:16]}
47... Ke6 {[%clk 0:00:25.3]} 48. Rxh5 {[%clk 0:00:17.6]} 48... c4 {[%clk
0:00:26.1]} 49. Rh6+ {[%clk 0:00:18.1]} 49... Kf7 {[%clk 0:00:27.3]} 50. Rh5
{[%clk 0:00:08.9]} 50... Bg1+ {[%clk 0:00:24.7]} 51. Kh1 {[%clk 0:00:09.7]}
51... c3 {[%clk 0:00:21.3]} 52. Nh6+ {[%clk 0:00:07.9]} 52... Kg7 {[%clk
0:00:22]} 53. Rg5+ {[%clk 0:00:07.5]} 53... Kf6 {[%clk 0:00:22.5]} 54. Rf5+
{[%clk 0:00:06.3]} 54... Kg6 {[%clk 0:00:23.4]} 55. Rd5 {[%clk 0:00:04]} 55...
c2 {[%clk 0:00:22.7]} 56. Rd6+ {[%clk 0:00:05.5]} 56... Kg7 {[%clk 0:00:22.9]}
57. Nf5+ {[%clk 0:00:06.6]} 57... Kf7 {[%clk 0:00:23.8]} 58. Nh6+ {[%clk
0:00:08]} 58... Kf8 {[%clk 0:00:24.4]} 59. Rd8+ {[%clk 0:00:08.2]} 59... Ke7
{[%clk 0:00:25.1]} 60. Rc8 {[%clk 0:00:08.6]} 60... Be3+ {[%clk 0:00:25.4]} 61.
Kh2 {[%clk 0:00:09.2]} 61... Bg1+ {[%clk 0:00:25.4]} 62. Kh1 {[%clk 0:00:10.1]}
62... Bc5+ {[%clk 0:00:26.9]} 63. Kh2 {[%clk 0:00:10.6]} 63... Rh1+ {[%clk
0:00:28.4]} 64. Kxh1 {[%clk 0:00:11.3]} 64... c1=Q+ {[%clk 0:00:30.3]} 65. Kh2
{[%clk 0:00:12.8]} 65... Qg1# {[%clk 0:00:31.7]} 0-1